lending/lending_fUSD_20250121
["ID","MTS","AMOUNT","RATE_DAILY","PERIOD"]
[349792145,1737431476425,-2000.0,0.000219,2]
[349792146,1737431476437,-2000.0,0.000219,2]
[349792147,1737431476447,-5983.75063898,0.000219,2]
[349792148,1737431476456,-2000.0,0.000219,2]
[349792149,1737431476466,-2000.0,0.000219,2]
[349792150,1737431476477,-8500.0,0.000219,2]
[349792151,1737431476487,-68992.3472,0.000219,2]
[349792152,1737431476496,-220.0,0.000219,2]
[349792153,1737431476505,-5800.0,0.000219,2]
[349792154,1737431476514,-1919.0,0.000219,31]
[349792155,1737431476523,-1919.0,0.000219,31]
[349792156,1737431476533,-1919.0,0.000219,31]
[349792157,1737431476542,-1919.0,0.000219,31]
[349792158,1737431476551,-1919.0,0.000219,31]
[349792159,1737431476560,-1919.0,0.000219,31]
[349792160,1737431476569,-1919.0,0.000219,31]
[349792161,1737431476578,-1919.0,0.000219,31]
[349792162,1737431476587,-1919.0,0.000219,31]
[349792163,1737431476597,-1919.0,0.000219,31]
[349792164,1737431476606,-1919.0,0.000219,31]
[349792165,1737431476614,-1919.0,0.000219,31]
[349792166,1737431476623,-1919.0,0.000219,31]
[349792167,1737431476632,-1919.0,0.000219,31]
[349792168,1737431476642,-1919.0,0.000219,31]
[349792169,1737431476651,-1919.0,0.000219,31]
[349792170,1737431476660,-21948.61484313,0.000219,2]
[349792171,1737431476673,-1000.0,0.000219,2]
[349792172,1737431476683,-15097.33547228,0.000219,2]
[349792173,1737431476692,-205.12844974,0.000219,2]
[349792174,1737431476701,-208.67537111,0.000219,3]
[349792175,1737431476711,-461.74226266,0.000219,2]
[349792176,1737431476720,-1732.0,0.000219,2]
[349792177,1737431476730,-510.16768844,0.00021917,2]
[349792178,1737431476739,-500.0,0.00021917,2]
[349792179,1737431476748,-500.0,0.00021917,2]
[349792180,1737431476757,-500.0,0.00021917,2]
[349792181,1737431476768,-246.03,0.00021917,2]
[349792182,1737431476777,-195.280008,0.00021917,2]
[349792183,1737431476786,-2605.56,0.00021917,2]
[349792184,1737431476797,-507.06,0.00021917,2]
[349792185,1737431476806,-500.0,0.00021917,2]
[349792186,1737431476815,-500.0,0.00021917,2]
[349792187,1737431476824,-500.0,0.00021917,2]
[349792188,1737431476964,-500.0,0.00021917,2]
[349792189,1737431476975,-500.0,0.00021917,2]
[349792190,1737431476984,-500.0,0.00021917,2]
[349792191,1737431476993,-595.75,0.00021917,2]
[349792192,1737431477003,-595.75,0.00021917,2]
[349792193,1737431477012,-595.75,0.00021917,2]
[349792194,1737431477022,-595.75,0.00021917,2]
[349792195,1737431477032,-595.75,0.00021917,2]
[349792196,1737431477041,-595.75,0.00021917,2]
[349792197,1737431477051,-595.75,0.00021917,2]
[349792198,1737431477060,-595.75,0.00021917,2]
[349792199,1737431477069,-595.75,0.00021917,2]
[349792200,1737431477078,-595.75,0.00021917,2]
[349792201,1737431477087,-595.75,0.00021917,2]
[349792202,1737431477096,-643.06,0.00021917,2]
[349792203,1737431477105,-500.0,0.00021917,2]
[349792204,1737431477114,-385.09618648,0.00021917,2]
[349792205,1737431477123,-804.89,0.00021917,2]
[349792206,1737431477133,-500.0,0.00021917,2]
[349792207,1737431477143,-500.0,0.00021917,2]
[349792208,1737431477153,-500.0,0.00021917,2]
[349792209,1737431477162,-500.0,0.00021917,2]
[349792210,1737431477174,-529.46690991,0.00021917,2]
[349792211,1737431477184,-520.25,0.00021917,2]
[349792212,1737431477194,-500.0,0.00021917,2]
[349792213,1737431477204,-500.0,0.00021917,2]
[349792214,1737431477213,-997.65,0.00021917,2]
[349792215,1737431477223,-277.90030585,0.00021917,2]
[349792216,1737431477233,-500.0,0.00021917,2]
[349792217,1737431477242,-500.0,0.00021917,2]
[349792218,1737431477252,-840.51,0.00021917,2]
[349792219,1737431477261,-500.0,0.00021917,2]
[349792220,1737431477270,-500.0,0.00021917,2]
[349792221,1737431477279,-500.0,0.00021917,2]
[349792222,1737431477289,-588.53,0.00021917,2]
[349792223,1737431477298,-500.0,0.00021917,2]
[349792224,1737431477307,-533.17771255,0.00021917,2]
[349792225,1737431477317,-156.91437571,0.00021917,2]
[349792226,1737431477326,-500.0,0.00021917,2]
[349792227,1737431477336,-500.0,0.00021917,2]
[349792228,1737431477346,-500.0,0.00021917,2]
[349792229,1737431477355,-565.02,0.00021917,2]
[349792230,1737431477364,-500.0,0.00021917,2]
[349792231,1737431477374,-554.98,0.00021917,2]
[349792232,1737431477383,-997.23,0.00021917,2]
[349792233,1737431477397,-500.0,0.00021917,2]
[349792234,1737431477407,-500.0,0.00021917,2]
[349792235,1737431477418,-500.0,0.00021917,2]
[349792236,1737431477427,-500.0,0.00021917,2]
[349792237,1737431477437,-500.0,0.00021917,2]
[349792238,1737431477447,-701.25,0.00021917,2]
[349792239,1737431477456,-500.0,0.00021917,2]
[349792240,1737431477465,-500.0,0.00021917,2]
[349792241,1737431477475,-692.94,0.00021917,2]
[349792242,1737431477484,-1414.07,0.00021917,2]
[349792243,1737431477493,-500.0,0.00021917,2]
[349792244,1737431477502,-500.0,0.00021917,2]
[349792245,1737431477511,-548.14,0.00021917,2]
[349792246,1737431477521,-157.934379,0.00021917,2]
[349792247,1737431477530,-500.0,0.00021917,2]
[349792248,1737431477539,-500.0,0.00021917,2]
[349792249,1737431477549,-1043.76,0.00021917,2]
[349792250,1737431477559,-1957.94,0.00021917,2]
[349792251,1737431477569,-546.99,0.00021917,2]
[349792252,1737431477578,-546.99,0.00021917,2]
[349792253,1737431477588,-546.99,0.00021917,2]
[349792254,1737431477596,-546.99,0.00021917,2]
[349792255,1737431477605,-546.99,0.00021917,2]
[349792256,1737431477615,-546.99,0.00021917,2]
[349792257,1737431477624,-546.99,0.00021917,2]
[349792258,1737431477634,-546.99,0.00021917,2]
[349792259,1737431477643,-546.99,0.00021917,2]
[349792260,1737431477652,-546.99,0.00021917,2]
[349792261,1737431477661,-546.99,0.00021917,2]
[349792262,1737431477672,-500.0,0.00021917,2]
[349792263,1737431477681,-500.0,0.00021917,2]
[349792264,1737431477691,-748.19,0.00021917,2]
[349792265,1737431477701,-500.0,0.00021917,2]
[349792266,1737431477712,-687.73,0.00021917,2]
[349792267,1737431477722,-500.0,0.00021917,2]
[349792268,1737431477732,-1914.62,0.00021917,2]
[349792269,1737431477742,-1072.38,0.00021917,2]
[349792270,1737431477752,-190.983926,0.00021917,2]
[349792271,1737431477761,-1057.57,0.00021917,2]
[349792272,1737431477770,-3718.34,0.00021917,2]
[349792273,1737431477780,-1040.36,0.00021917,2]
[349792274,1737431477789,-616.87,0.00021917,2]
[349792275,1737431477798,-500.0,0.00021917,2]
[349792276,1737431477807,-2085.05,0.00021917,2]
[349792277,1737431477816,-1778.99,0.00021917,2]
[349792278,1737431477825,-500.0,0.00021917,8]
[349792279,1737431477834,-634.1,0.00021917,2]
[349792280,1737431477843,-503.79992428,0.00021917,8]
[349792281,1737431477853,-616.88,0.00021917,2]
[349792282,1737431477862,-500.0,0.00021917,2]
[349792283,1737431477872,-1286.82,0.00021917,2]
[349792284,1737431477881,-1351.91,0.00021917,2]
[349792285,1737431477894,-808.1,0.00021917,2]
[349792286,1737431477903,-2057.31,0.00021917,2]
[349792287,1737431477913,-709.92,0.00021917,2]
[349792288,1737431477925,-860.56,0.00021917,2]
[349792289,1737431477934,-500.0,0.00021917,2]
[349792290,1737431477944,-500.0,0.00021917,2]
[349792291,1737431477954,-629.86,0.00021917,2]
[349792292,1737431477963,-500.0,0.00021917,2]
[349792293,1737431477974,-500.0,0.00021917,2]
[349792294,1737431477983,-500.0,0.00021917,2]
[349792295,1737431477992,-194.96,0.00021917,2]
[349792296,1737431478002,-2023.46,0.00021917,2]
[349792297,1737431478011,-577.3,0.00021917,2]
[349792298,1737431478022,-692.77,0.00021917,2]
[349792299,1737431478031,-2706.85,0.00021917,2]
[349792300,1737431478041,-1366.24,0.00021917,2]
[349792301,1737431478051,-641.22,0.00021917,2]
[349792302,1737431478061,-500.0,0.00021917,2]
[349792303,1737431478070,-500.0,0.00021917,2]
[349792304,1737431478080,-500.0,0.00021917,2]
[349792305,1737431478090,-1745.41,0.00021917,2]
[349792306,1737431478100,-636.37,0.00021917,2]
[349792307,1737431478109,-565.86,0.00021917,2]
[349792308,1737431478119,-832.95,0.00021917,2]
[349792309,1737431478128,-1196.64,0.00021917,2]
[349792310,1737431478138,-2691.18,0.00021917,2]
[349792311,1737431478148,-925.48,0.00021917,2]
[349792312,1737431478157,-1247.91,0.00021917,2]
[349792313,1737431478168,-500.0,0.00021917,2]
[349792314,1737431478178,-999.61,0.00021917,2]
[349792315,1737431478188,-1943.47,0.00021917,2]
[349792316,1737431478198,-500.0,0.00021917,2]
[349792317,1737431478208,-500.0,0.00021917,2]
[349792318,1737431478218,-1120.67,0.00021917,2]
[349792319,1737431478227,-886.99,0.00021917,2]
[349792320,1737431478237,-1261.99,0.00021917,2]
[349792321,1737431478247,-2125.42,0.00021917,2]
[349792322,1737431478257,-246.01,0.00021917,2]
[349792323,1737431478267,-1434.09,0.00021917,2]
[349792324,1737431478276,-1480.4,0.00021917,2]
[349792325,1737431478286,-511.03,0.00021917,2]
[349792326,1737431478296,-873.5,0.00021917,2]
[349792327,1737431478306,-500.0,0.00021917,2]
[349792328,1737431478316,-500.0,0.00021917,2]
[349792329,1737431478325,-945.49,0.00021917,2]
[349792330,1737431478334,-509.1,0.00021917,2]
[349792331,1737431478343,-500.0,0.00021917,2]
[349792332,1737431478353,-1020.26,0.00021917,2]
[349792333,1737431478362,-1179.69,0.00021917,2]
[349792334,1737431478372,-1380.46,0.00021917,2]
[349792335,1737431478382,-1196.36,0.00021917,2]
[349792336,1737431478394,-618.98,0.00021917,2]
[349792337,1737431478404,-500.0,0.00021917,2]
[349792338,1737431478413,-549.65,0.00021917,2]
[349792339,1737431478424,-673.28,0.00021917,2]
[349792340,1737431478434,-2381.85,0.00021917,2]
[349792341,1737431478444,-1438.7,0.00021917,2]
[349792342,1737431478453,-370.2,0.00021917,2]
[349792343,1737431478462,-500.0,0.00021917,2]
[349792344,1737431478472,-1308.98,0.00021917,2]
[349792345,1737431478482,-546.12,0.00021917,2]
[349792346,1737431478492,-1491.71,0.00021917,2]
[349792347,1737431478502,-573.04,0.00021917,2]
[349792348,1737431478512,-500.0,0.00021917,2]
[349792349,1737431478522,-1575.05,0.00021917,2]
[349792350,1737431478532,-894.47,0.00021917,2]
[349792351,1737431478541,-628.18,0.00021917,2]
[349792352,1737431478551,-500.0,0.00021917,2]
[349792353,1737431478561,-500.0,0.00021917,2]
[349792354,1737431478571,-1534.21,0.00021917,2]
[349792355,1737431478581,-1230.77,0.00021917,2]
[349792356,1737431478591,-681.3,0.00021917,2]
[349792357,1737431478602,-500.0,0.00021917,2]
[349792358,1737431478612,-500.0,0.00021917,2]
[349792359,1737431478621,-500.0,0.00021917,2]
[349792360,1737431478631,-700.3,0.00021917,2]
[349792361,1737431478640,-1332.19,0.00021917,2]
[349792362,1737431478650,-907.81,0.00021917,2]
[349792363,1737431478660,-500.0,0.00021917,2]
[349792364,1737431478669,-4000.0,0.00021918,2]
[349792365,1737431478679,-150.0,0.00021918,2]
[349792366,1737431478689,-5901.41,0.00021959,7]
[349792367,1737431478698,-5901.41,0.00021959,7]
[349792368,1737431478707,-150.0,0.00021973,4]
[349792369,1737431478716,-150.0,0.00021973,4]
[349792370,1737431478726,-150.0,0.00021973,4]
[349792371,1737431478735,-150.60025099,0.00021973,4]
[349792372,1737431478745,-150.0,0.00021973,2]
[349792373,1737431478755,-3100.2451544,0.0002199,2]
[349792374,1737431478764,-3683.9196067,0.0002199,2]
[349792375,1737431478773,-1204.1868313,0.0002199,2]
[349792376,1737431478783,-1632.3398862,0.0002199,2]
[349792377,1737431478792,-2000.0,0.00021999,2]
[349792378,1737431478802,-2000.0,0.00021999,2]
[349792379,1737431478812,-187.22228015,0.00021999,2]
[349792380,1737431478821,-504.32198758,0.00021999,2]
[349792381,1737431478831,-500.0,0.00021999,2]
[349792382,1737431478841,-500.0,0.00021999,2]
[349792383,1737431478850,-500.0,0.00021999,2]
[349792384,1737431478860,-500.0,0.00021999,2]
[349792385,1737431478869,-500.0,0.00021999,2]
[349792386,1737431478879,-500.0,0.00021999,2]
[349792387,1737431478888,-500.0,0.00021999,2]
[349792388,1737431478898,-521.21416324,0.00021999,2]
[349792389,1737431478907,-500.0,0.00021999,2]
[349792390,1737431478917,-673.59653589,0.00021999,2]
[349792391,1737431478927,-8859504.45415681,0.00022,2]
[349792392,1737431478936,-846.75653391,0.00022,2]
[349792393,1737431478946,-3634851.23153507,0.00022,2]
[349792394,1737431479228,-103104.9413039,0.00022,2]
[349792395,1737431479524,-1016.0,0.00021096,4]
[349792396,1737431479534,-530.6031624,0.00022,2]
[349792397,1737431479546,-1621.37100779,0.00022,2]
[349792398,1737431480008,-130.88186617,0.00019178,2]
[349792400,1737431703141,193.77423308,0.00024,120]
[349792401,1737431857194,2719.8904207,0.00024,90]
[349792404,1737432120482,152.38,0.00010137,2]
[349792405,1737432454109,-179.43495307,0.00015,2]
[349792406,1737432546146,-370.56504693,0.00015,2]
[349792407,1737432546169,-600.0,0.00017,2]
[349792408,1737432546193,-152.38,0.00018065,2]
[349792409,1737432546214,-248.70732325,0.00018706,2]
[349792410,1737432546235,-23900.0,0.00018936,2]
[349792411,1737432546256,-660.655,0.00018978,2]
[349792412,1737432546278,-1000.0,0.00019012,2]
[349792413,1737432546299,-526.64962799,0.00019078,2]
[349792414,1737432546322,-698.69,0.00019106,30]
[349792415,1737432546344,-5317.96456471,0.00019177,2]
[349792416,1737432548085,-3732.46771451,0.00019177,2]
[349792417,1737432553092,-980.3816968,0.00019177,2]
[349792418,1737432553112,-500.0,0.00019178,2]
[349792419,1737432553132,-500.0,0.00019178,2]
[349792420,1737432553153,-539.65,0.00019178,2]
[349792421,1737432553172,-516.93130248,0.00019178,2]
[349792422,1737432553192,-500.0,0.00019178,2]
[349792423,1737432553212,-300.76643885,0.00019178,2]
[349792424,1737432566114,-1039.74,0.00017399,2]
[349792431,1737432632274,-300.0,0.00019177,2]
[349792432,1737432632284,-5.9999985,0.00019178,2]
[349792433,1737432632296,-193.23356265,0.00019178,2]
[349792434,1737432632306,-194.41143735,0.00019178,2]
[349792435,1737432632318,-322.38063147,0.00019178,2]
[349792436,1737432632328,-194.49618961,0.00019178,2]
[349792437,1737432632338,-500.0,0.00019178,2]
[349792438,1737432632347,-500.0,0.00019178,2]
[349792439,1737432632357,-500.0,0.00019178,2]
[349792440,1737432632366,-509.09999664,0.00019178,2]
[349792441,1737432632376,-511.98032552,0.00019178,2]
[349792442,1737432632386,-500.0,0.00019178,2]
[349792443,1737432632395,-500.0,0.00019178,2]
[349792444,1737432632405,-500.0,0.00019178,2]
[349792445,1737432632417,-514.86324686,0.00019178,2]
[349792446,1737432632426,-500.0,0.00019178,2]
[349792447,1737432632435,-506.93000036,0.00019178,2]
[349792448,1737432632445,-500.0,0.00019178,2]
[349792449,1737432632454,-540.16,0.00019178,2]
[349792450,1737432632464,-513.36710703,0.00019178,2]
[349792451,1737432632474,-500.0,0.00019178,2]
[349792452,1737432632483,-500.0,0.00019178,2]
[349792453,1737432632493,-521.69407725,0.00019178,2]
[349792454,1737432632503,-508.10629164,0.00019178,2]
[349792455,1737432632513,-500.0,0.00019178,2]
[349792456,1737432632522,-510.21862908,0.00019178,2]
[349792457,1737432632531,-512.2243285,0.00019178,2]
[349792458,1737432632540,-500.0,0.00019178,2]
[349792459,1737432632549,-500.0,0.00019178,2]
[349792460,1737432632559,-505.97192552,0.00019178,2]
[349792461,1737432632568,-500.0,0.00019178,2]
[349792462,1737432632577,-500.0,0.00019178,2]
[349792463,1737432632587,-500.0,0.00019178,2]
[349792464,1737432632596,-500.0,0.00019178,2]
[349792465,1737432632605,-500.0,0.00019178,2]
[349792466,1737432632614,-500.0,0.00019178,2]
[349792467,1737432632623,-500.0,0.00019178,2]
[349792468,1737432632632,-500.0,0.00019178,2]
[349792469,1737432632642,-500.0,0.00019178,2]
[349792470,1737432632651,-500.0,0.00019178,2]
[349792471,1737432632663,-500.0,0.00019178,2]
[349792472,1737432632672,-500.0,0.00019178,2]
[349792473,1737432632682,-500.0,0.00019178,2]
[349792474,1737432632691,-500.0,0.00019178,2]
[349792475,1737432632700,-500.0,0.00019178,2]
[349792476,1737432632710,-500.0,0.00019178,2]
[349792477,1737432632719,-500.0,0.00019178,2]
[349792478,1737432632728,-500.0,0.00019178,2]
[349792479,1737432632738,-500.0,0.00019178,2]
[349792480,1737432632747,-500.0,0.00019178,2]
[349792481,1737432632757,-500.0,0.00019178,2]
[349792482,1737432632768,-500.0,0.00019178,2]
[349792483,1737432632777,-502.91914171,0.00019178,2]
[349792484,1737432632787,-528.58207225,0.00019178,2]
[349792485,1737432632797,-500.0,0.00019178,2]
[349792486,1737432632806,-500.0,0.00019178,2]
[349792487,1737432632815,-500.0,0.00019178,2]
[349792488,1737432632825,-300.0,0.00019178,2]
[349792489,1737432632834,-500.0,0.00019178,2]
[349792490,1737432632843,-500.0,0.00019178,2]
[349792491,1737432632852,-500.0,0.00019178,2]
[349792492,1737432632862,-501.53026052,0.00019178,2]
[349792493,1737432632871,-500.0,0.00019178,2]
[349792494,1737432632881,-500.0,0.00019178,2]
[349792495,1737432632890,-500.0,0.00019178,2]
[349792496,1737432632899,-500.0,0.00019178,2]
[349792497,1737432632911,-500.0,0.00019178,2]
[349792498,1737432632920,-500.0,0.00019178,2]
[349792499,1737432632930,-363.03642586,0.00019178,2]
[349792500,1737432632939,-500.0,0.00019178,2]
[349792501,1737432632949,-500.0,0.00019178,2]
[349792502,1737432632959,-500.0,0.00019178,2]
[349792503,1737432632968,-500.0,0.00019178,2]
[349792504,1737432632978,-152.94376492,0.00019178,2]
[349792505,1737432632999,-347.05623508,0.00019178,2]
[349792506,1737432633009,-500.0,0.00019178,2]
[349792507,1737432633019,-500.0,0.00019178,2]
[349792508,1737432633028,-500.0,0.00019178,2]
[349792509,1737432633037,-316.94376492,0.00019178,2]
[349792510,1737432633050,-75.23623508,0.00019178,2]
[349792511,1737432633059,-500.0,0.00019178,2]
[349792512,1737432633068,-518.89677919,0.00019178,2]
[349792513,1737432633080,-527.20322081,0.00019178,2]
[349792514,1737432633089,-500.0,0.00019178,2]
[349792515,1737432633098,-332.12060465,0.00019178,2]
[349792516,1737432633107,-196.16082532,0.00019178,2]
[349792517,1737432636291,-303.83917468,0.00019178,2]
[349792518,1737432636301,-500.0,0.00019178,2]
[349792519,1737432636310,-500.0,0.00019178,2]
[349792520,1737432636319,-500.0,0.00019178,2]
[349792521,1737432636328,-151.99034179,0.00019178,2]
[349792522,1737432637282,-343.30938895,0.00019178,2]
[349792523,1737432637292,-500.0,0.00019178,2]
[349792524,1737432637301,-500.0,0.00019178,2]
[349792525,1737432637310,-500.0,0.00019178,2]
[349792526,1737432637319,-500.0,0.00019178,2]
[349792527,1737432637328,-500.0,0.00019178,2]
[349792528,1737432637338,-500.0,0.00019178,2]
[349792529,1737432637347,-500.0,0.00019178,2]
[349792530,1737432637359,-500.0,0.00019178,2]
[349792531,1737432637368,-568.32,0.00019178,2]
[349792532,1737432637378,-500.0,0.00019178,2]
[349792533,1737432637387,-500.0,0.00019178,2]
[349792535,1737432637398,-500.0,0.00019178,2]
[349792537,1737432637408,-500.0,0.00019178,2]
[349792539,1737432637420,-500.0,0.00019178,2]
[349792541,1737432637430,-500.0,0.00019178,2]
[349792543,1737432637439,-500.0,0.00019178,2]
[349792545,1737432637449,-560.18,0.00019178,2]
[349792547,1737432637459,-2287.02,0.00019178,2]
[349792549,1737432637468,-500.0,0.00019178,2]
[349792551,1737432637479,-500.0,0.00019178,2]
[349792553,1737432637488,-500.0,0.00019178,2]
[349792555,1737432637497,-988.46,0.00019178,2]
[349792557,1737432637506,-500.0,0.00019178,2]
[349792558,1737432637516,-500.0,0.00019178,2]
[349792559,1737432637526,-500.0,0.00019178,2]
[349792561,1737432637536,-500.0,0.00019178,2]
[349792562,1737432637546,-500.0,0.00019178,2]
[349792563,1737432637555,-500.0,0.00019178,2]
[349792564,1737432637565,-500.0,0.00019178,2]
[349792565,1737432637575,-596.34,0.00019178,2]
[349792566,1737432637584,-230.37536551,0.00019178,2]
[349792567,1737432637594,-500.0,0.00019178,2]
[349792568,1737432637603,-500.0,0.00019178,2]
[349792569,1737432637613,-500.0,0.00019178,2]
[349792570,1737432637622,-545.71976879,0.00019178,2]
[349792571,1737432637632,-500.0,0.00019178,2]
[349792572,1737432637642,-500.0,0.00019178,2]
[349792573,1737432637651,-500.0,0.00019178,2]
[349792574,1737432637661,-500.0,0.00019178,2]
[349792575,1737432637672,-500.0,0.00019178,2]
[349792576,1737432637681,-500.0,0.00019178,2]
[349792577,1737432637691,-542.89262163,0.00019178,2]
[349792578,1737432637700,-500.0,0.00019178,2]
[349792579,1737432637710,-76138.2969638,0.00019178,2]
[349792580,1737432637720,-177.70371535,0.00019178,2]
[349792581,1737432637729,-250.25,0.00019205,2]
[349792582,1737432637739,-250.0,0.00019234,2]
[349792583,1737432637751,-250.0,0.00019317,2]
[349792584,1737432637763,-162.67637776,0.00019352,2]
[349792585,1737432637773,-514.81407613,0.00019391,2]
[349792586,1737432637782,-500.0,0.0001945,2]
[349792587,1737432637791,-500.0,0.0001945,2]
[349792588,1737432637800,-500.0,0.0001945,2]
[349792589,1737432637810,-500.0,0.0001945,2]
[349792590,1737432637819,-675.95,0.0001945,2]
[349792591,1737432637828,-500.0,0.0001945,2]
[349792592,1737432637838,-500.0,0.0001945,2]
[349792593,1737432637847,-776.79,0.0001945,2]
[349792594,1737432637857,-701.33,0.0001945,2]
[349792595,1737432637866,-512.14,0.0001945,2]
[349792596,1737432637875,-500.0,0.0001945,2]
[349792597,1737432637885,-500.0,0.0001945,2]
[349792598,1737432637894,-500.0,0.0001945,2]
[349792599,1737432637904,-779.3,0.0001945,2]
[349792600,1737432637915,-894.95,0.0001945,2]
[349792601,1737432637924,-500.0,0.0001945,2]
[349792602,1737432637933,-777.11,0.0001945,2]
[349792604,1737432637943,-500.0,0.0001945,2]
[349792606,1737432637952,-500.0,0.0001945,2]
[349792607,1737432637962,-500.0,0.0001945,2]
[349792608,1737432637971,-500.0,0.0001945,2]
[349792609,1737432637980,-500.0,0.0001945,2]
[349792610,1737432637990,-500.0,0.0001945,2]
[349792611,1737432637999,-500.0,0.0001945,2]
[349792612,1737432638008,-824.87,0.0001945,2]
[349792613,1737432638018,-637.74,0.0001945,2]
[349792614,1737432638027,-506.67506671,0.00019451,2]
[349792615,1737432638036,-507.99702394,0.00019451,2]
[349792616,1737432638046,-500.0,0.00019451,2]
[349792617,1737432638055,-500.0,0.00019451,2]
[349792618,1737432638259,-500.0,0.00019451,2]
[349792619,1737432638270,-500.0,0.00019451,2]
[349792620,1737432638280,-595.05,0.00019451,2]
[349792621,1737432638289,-494.0,0.00019451,2]
[349792622,1737432638299,-500.0,0.00019451,2]
[349792623,1737432638308,-525.50437458,0.00019451,2]
[349792624,1737432638318,-500.0,0.00019451,2]
[349792625,1737432638327,-500.0,0.00019451,2]
[349792626,1737432638336,-500.0,0.00019451,2]
[349792627,1737432638346,-500.0,0.00019451,2]
[349792628,1737432638356,-506.67563647,0.00019451,2]
[349792629,1737432638366,-500.0,0.00019451,2]
[349792630,1737432638376,-500.0,0.00019451,2]
[349792631,1737432638386,-580.87,0.00019451,2]
[349792632,1737432638396,-500.0,0.00019451,2]
[349792633,1737432638406,-500.0,0.00019451,2]
[349792634,1737432638418,-171.86,0.00019451,2]
[349792635,1737432638428,-500.0,0.00019451,2]
[349792636,1737432638438,-500.0,0.00019451,2]
[349792637,1737432638448,-500.0,0.00019451,2]
[349792638,1737432638458,-500.0,0.00019451,2]
[349792639,1737432638468,-500.0,0.00019451,2]
[349792640,1737432638478,-157.93438,0.00019451,2]
[349792641,1737432638489,-500.0,0.00019451,2]
[349792642,1737432638499,-500.0,0.00019451,2]
[349792643,1737432638508,-500.0,0.00019451,2]
[349792644,1737432638518,-500.0,0.00019451,2]
[349792645,1737432638528,-500.0,0.00019451,2]
[349792646,1737432638538,-156.259577,0.00019451,2]
[349792647,1737432638547,-500.0,0.00019451,2]
[349792648,1737432638556,-500.0,0.00019451,2]
[349792649,1737432638566,-500.0,0.00019451,2]
[349792650,1737432638575,-808.01,0.00019451,2]
[349792651,1737432638585,-629.7124696,0.00019451,2]
[349792652,1737432638594,-500.0,0.00019451,2]
[349792653,1737432638603,-666.67,0.00019451,2]
[349792654,1737432638614,-500.0,0.00019451,2]
[349792655,1737432638623,-500.0,0.00019451,2]
[349792656,1737432638633,-500.0,0.00019451,2]
[349792657,1737432638642,-500.0,0.00019451,2]
[349792658,1737432638651,-500.0,0.00019451,2]
[349792659,1737432638662,-500.0,0.00019451,2]
[349792660,1737432638674,-500.0,0.00019451,2]
[349792661,1737432638684,-500.0,0.00019451,2]
[349792662,1737432638693,-500.0,0.00019451,2]
[349792663,1737432638703,-500.0,0.00019451,2]
[349792664,1737432638712,-500.0,0.00019451,2]
[349792665,1737432638722,-500.0,0.00019451,2]
[349792666,1737432638731,-500.0,0.00019451,2]
[349792667,1737432638742,-500.0,0.00019451,2]
[349792668,1737432638751,-500.0,0.00019451,2]